bitfinex-derivatives/quotes_ETHF0:USTF0_20230903
["timestamp","ask_amount","ask_price","bid_price","bid_amount"]
[1693755066491,6.11187,1636.4,1636.3,27.04256761]
[1693755067487,6.11187,1636.4,1636.3,28.64475438]
[1693755069393,6.11187,1636.4,1636.3,26.23982093]
[1693755070495,6.11187,1636.4,1636.3,24.32892164]
[1693755072891,9.16783,1636.4,1636.3,24.32892164]
[1693755074294,9.16783,1636.4,1636.3,22.72673487]
[1693755077595,9.16783,1636.4,1636.3,22.66563487]
[1693755078597,0.49900005,1636.5,1636.4,0.0611]
[1693755078894,9.16694,1636.6,1636.4,17.79366]
[1693755079098,9.16694,1636.6,1636.5,5.509]
[1693755079295,15.58843307,1636.6,1636.4,5.509]
[1693755079700,15.58843307,1636.6,1636.4,8.56485]
[1693755080399,15.58843307,1636.6,1636.5,2.86716352]
[1693755080592,15.58843307,1636.6,1636.4,11.6207]
[1693755081406,15.58843307,1636.6,1636.4,14.48786352]
[1693755082099,15.58843307,1636.6,1636.4,11.6207]
[1693755082800,15.58843307,1636.6,1636.4,14.48786352]
[1693755083307,15.58843307,1636.6,1636.4,8.97886352]
[1693755091006,15.58843307,1636.6,1636.4,14.48786352]
[1693755091697,15.58843307,1636.6,1636.4,11.6207]
[1693755092103,15.58843307,1636.6,1636.4,8.56485]
[1693755094009,15.58843307,1636.6,1636.4,5.509]
[1693755095210,15.58843307,1636.6,1636.4,5.5701]
[1693755095412,15.58843307,1636.6,1636.4,5.509]
[1693755095610,18.79088831,1636.6,1636.4,5.509]
[1693755096008,19.96219892,1636.6,1636.4,5.509]
[1693755097714,12.52852268,1636.5,1636.4,5.509]
[1693755097908,12.52852268,1636.5,1636.3,5.509]
[1693755098111,15.09064352,1636.4,1636.3,5.509]
[1693755098507,15.39642348,1636.4,1636.3,5.509]
[1693755098711,24.10787872,1636.4,1636.1,5.509]
[1693755098913,24.97340937,1636.4,1636.1,5.509]
[1693755100117,3.50825357,1636.3,1636.1,5.509]
[1693755100318,15.09224352,1636.2,1636.1,5.509]
[1693755100816,20.60124352,1636.2,1635.9,1.60218677]
[1693755101113,15.2832,1636.0,1635.8,5.509]
[1693755101313,15.2832,1636.0,1635.7,2.06101626]
[1693755101314,12.228,1635.8,1635.7,2.06101626]
[1693755101913,12.228,1635.8,1635.7,1.60218677]
[1693755102417,12.228,1635.8,1635.6,15.63079022]
[1693755102617,12.228,1635.8,1635.6,12.57343022]
[1693755102814,2.86716352,1635.7,1635.6,12.56727352]
[1693755103017,12.03867352,1635.7,1635.6,14.60379318]
[1693755103214,15.09584352,1635.7,1635.6,11.54648318]
[1693755103408,15.09584352,1635.7,1635.6,4.65774541]
[1693755106520,15.09584352,1635.7,1635.6,3.05736]
[1693755108326,15.09584352,1635.7,1635.6,5.92452352]
[1693755108527,12.22868,1635.7,1635.6,11.43352352]
[1693755111830,15.09584352,1635.7,1635.6,11.43352352]
[1693755113828,15.09584352,1635.7,1635.6,14.49091352]
[1693755114324,12.22868,1635.7,1635.6,14.49091352]
[1693755115027,15.09584352,1635.7,1635.6,14.49091352]
[1693755116923,12.22868,1635.7,1635.6,14.49091352]
[1693755121434,15.09584352,1635.7,1635.6,14.49091352]
[1693755121833,12.22868,1635.7,1635.6,14.49091352]
[1693755123636,15.09584352,1635.7,1635.6,14.49091352]
[1693755124036,12.22868,1635.7,1635.6,14.49091352]
[1693755125038,15.09584352,1635.7,1635.6,14.49091352]
[1693755125538,12.22868,1635.7,1635.6,14.49091352]
[1693755129138,15.09584352,1635.7,1635.6,11.62375]
[1693755129342,15.09584352,1635.7,1635.6,8.56636]
[1693755129946,15.09584352,1635.7,1635.6,11.62375]
[1693755131451,12.22868,1635.7,1635.6,14.49091352]
[1693755133447,15.09584352,1635.7,1635.6,14.49091352]
[1693755133742,12.22868,1635.7,1635.6,14.49091352]
[1693755134251,9.17151,1635.7,1635.6,17.54830352]
[1693755134445,6.11434,1635.7,1635.6,17.54830352]
[1693755135950,9.17154,1635.7,1635.6,17.54830352]
[1693755137257,9.17154,1635.7,1635.6,19.14868893]
[1693755138255,9.17154,1635.7,1635.6,21.18403304]
[1693755139457,9.17154,1635.7,1635.6,23.58461115]
[1693755140359,9.17154,1635.7,1635.6,21.98422574]
[1693755142254,9.17154,1635.7,1635.6,22.78441845]
[1693755144953,9.17154,1635.7,1635.6,22.79615756]
[1693755145560,10.77025467,1635.7,1635.6,19.58893616]
[1693755146262,10.77025467,1635.7,1635.6,23.59796292]
[1693755154059,13.63741819,1635.7,1635.6,23.59796292]
[1693755154569,10.77025467,1635.7,1635.6,23.59796292]
[1693755160667,13.63741819,1635.7,1635.6,23.59796292]
[1693755161067,10.77025467,1635.7,1635.6,23.59796292]
[1693755171474,13.63741819,1635.7,1635.6,20.7307994]
[1693755171677,13.63741819,1635.7,1635.6,16.87448378]
[1693755171678,17.49397552,1635.7,1635.6,16.87448378]
[1693755173886,19.09412796,1635.7,1635.6,16.87448378]
[1693755175687,17.49397552,1635.7,1635.6,16.87448378]
[1693755177683,19.09429881,1635.7,1635.6,16.87448378]
[1693755178187,16.03709881,1635.7,1635.6,16.87448378]
[1693755181991,16.03709881,1635.7,1635.6,19.7416473]
[1693755182390,16.03709881,1635.7,1635.6,16.87448378]
[1693755182590,16.03709881,1635.7,1635.6,19.7416473]
[1693755183285,16.03709881,1635.7,1635.6,16.87448378]
[1693755183490,14.43677552,1635.7,1635.6,16.87448378]
[1693755183893,14.43677552,1635.7,1635.6,13.81709378]
[1693755184088,17.49397552,1635.7,1635.6,13.81709378]
[1693755184793,17.49397552,1635.7,1635.6,16.6842573]
[1693755185092,17.97307692,1635.7,1635.6,16.6842573]
[1693755186593,17.97307692,1635.7,1635.6,13.81709378]
[1693755188899,15.1059134,1635.7,1635.6,16.6842573]
[1693755189496,17.97307692,1635.7,1635.6,16.6842573]
[1693755190510,19.57377258,1635.7,1635.6,16.6842573]
[1693755190904,19.57377258,1635.7,1635.6,13.81709378]
[1693755192912,17.97307692,1635.7,1635.6,13.81709378]
[1693755194414,17.97307692,1635.7,1635.6,16.6842573]
[1693755195112,17.97307692,1635.7,1635.6,13.81709378]
[1693755195314,17.97307692,1635.7,1635.6,19.1236573]
[1693755196216,17.97307692,1635.7,1635.6,16.25649378]
[1693755196711,17.97307692,1635.7,1635.6,19.1236573]
[1693755197113,17.97307692,1635.7,1635.6,16.25649378]
[1693755197415,17.97307692,1635.7,1635.6,19.1236573]
[1693755199616,15.1059134,1635.7,1635.6,22.1810473]
[1693755213229,15.1059134,1635.7,1635.6,19.1236573]
[1693755215231,17.97307692,1635.7,1635.6,16.25649378]
[1693755215526,17.97307692,1635.7,1635.6,13.19913378]
[1693755215732,18.27894934,1635.7,1635.6,10.75973378]
[1693755216334,19.07830668,1635.7,1635.6,5.25073378]
[1693755216524,20.24919178,1635.7,1635.6,4.44847558]
[1693755216729,17.05176244,1635.7,1635.5,8.71910114]
[1693755216924,12.23024,1635.5,1635.4,3.21022893]
[1693755217134,16.23229266,1635.5,1635.4,8.71922893]
[1693755217329,19.09945618,1635.5,1635.4,8.71922893]
[1693755219033,16.69822333,1635.5,1635.4,8.71922893]
[1693755220934,19.09945618,1635.5,1635.4,8.71922893]
[1693755221135,16.69822333,1635.5,1635.4,8.71922893]
[1693755225337,16.69822333,1635.5,1635.4,11.77697893]
[1693755226239,16.69822333,1635.5,1635.4,8.71922893]
[1693755230541,16.69822333,1635.5,1635.4,5.509]
[1693755230839,19.09945618,1635.5,1635.4,5.509]
[1693755231543,19.09945618,1635.5,1635.4,8.56674]
[1693755232344,19.57675616,1635.5,1635.4,8.56674]
[1693755232841,17.17552331,1635.5,1635.4,8.56674]
[1693755233345,17.17552331,1635.5,1635.4,11.62451]
[1693755233842,15.5747035,1635.5,1635.4,11.62451]
[1693755234041,17.17485427,1635.5,1635.4,11.62451]
[1693755236835,17.17485427,1635.5,1635.4,13.28166003]
[1693755238036,17.17485427,1635.5,1635.4,16.14882355]
[1693755238440,17.17485427,1635.5,1635.4,13.28166003]
[1693755240247,19.57508043,1635.5,1635.4,13.28166003]
[1693755241247,19.57508043,1635.5,1635.4,16.14882355]
[1693755242752,19.57508043,1635.5,1635.4,13.28166003]
[1693755243139,17.17485427,1635.5,1635.4,13.28166003]
[1693755243643,17.17485427,1635.5,1635.4,16.14882355]
[1693755244850,19.57508043,1635.5,1635.4,16.14882355]
[1693755245240,8.19257075,1635.5,1635.4,19.20659355]
[1693755245446,6.59241998,1635.5,1635.4,19.20659355]
[1693755245951,9.64997998,1635.5,1635.4,19.20659355]
[1693755246843,9.64997998,1635.5,1635.4,22.41398797]
[1693755250153,0.47729998,1635.5,1635.4,25.47175797]
[1693755250357,3.05756,1635.5,1635.4,25.47175797]
[1693755250747,10.11537693,1635.6,1635.4,30.98075797]
[1693755251058,7.71495077,1635.6,1635.5,12.64348093]
[1693755251255,7.71495077,1635.6,1635.5,21.81607093]
[1693755251455,7.71495077,1635.6,1635.5,24.26537093]
[1693755252353,10.77235077,1635.6,1635.5,24.26537093]
[1693755252555,9.1722,1635.6,1635.5,24.26537093]
[1693755254760,10.77235077,1635.6,1635.5,24.26537093]
[1693755255756,9.1722,1635.6,1635.5,24.26537093]
[1693755255962,10.77235077,1635.6,1635.5,24.26537093]
[1693755256365,9.1722,1635.6,1635.5,24.26537093]
[1693755259161,10.77235077,1635.6,1635.5,24.26537093]
[1693755263375,9.1722,1635.6,1635.5,24.26537093]
[1693755265074,6.1148,1635.6,1635.5,24.26537093]
[1693755266477,9.1722,1635.6,1635.5,24.26537093]
[1693755268079,6.1148,1635.6,1635.5,27.32296093]
[1693755269076,6.1148,1635.6,1635.5,24.27679832]
[1693755270078,9.1722,1635.6,1635.5,24.27679832]
[1693755272079,12.03936352,1635.6,1635.5,24.27679832]
[1693755272279,9.1722,1635.6,1635.5,24.27679832]
[1693755273879,10.77377131,1635.6,1635.5,24.27679832]
[1693755274176,9.1722,1635.6,1635.5,24.27679832]
[1693755274385,12.03936352,1635.6,1635.5,24.27679832]
[1693755274881,9.1722,1635.6,1635.5,24.27679832]
[1693755275183,10.77377131,1635.6,1635.5,24.27679832]
[1693755275583,13.64093483,1635.6,1635.5,24.27679832]
[1693755276085,10.77377131,1635.6,1635.5,24.27679832]
[1693755276281,10.77326988,1635.6,1635.5,24.27665264]
[1693755276689,13.6404334,1635.6,1635.5,24.27665264]
[1693755281482,10.77326988,1635.6,1635.5,24.27665264]
[1693755282188,13.6404334,1635.6,1635.5,24.27665264]
[1693755282685,10.77326988,1635.6,1635.5,24.27665264]
[1693755283187,13.6404334,1635.6,1635.5,24.27665264]
[1693755283690,10.77326988,1635.6,1635.5,24.27665264]
[1693755284590,13.6404334,1635.6,1635.5,24.27665264]
[1693755285783,10.77326988,1635.6,1635.5,24.27665264]
[1693755286190,13.6404334,1635.6,1635.5,24.27671264]
[1693755286389,16.04203822,1635.6,1635.5,16.49988616]
[1693755286789,14.44096834,1635.6,1635.5,16.49988616]
[1693755295493,17.80425415,1635.6,1635.5,13.44239616]
[1693755295694,18.60478909,1635.6,1635.5,9.58561963]
[1693755298301,18.60478909,1635.6,1635.5,12.64318963]
[1693755300604,18.60478909,1635.6,1635.5,15.70075963]
[1693755301102,15.54738909,1635.6,1635.5,15.70075963]
[1693755302399,15.54738909,1635.6,1635.5,12.64318963]
[1693755302603,18.60478909,1635.6,1635.5,3.27366475]
[1693755302907,20.6461416,1635.6,1635.5,1.60458522]
[1693755303103,19.84770936,1635.6,1635.5,1.60458522]
[1693755304100,19.84770936,1635.6,1635.5,3.27471266]
[1693755304903,19.84770936,1635.6,1635.5,6.14187618]
[1693755305504,19.84770936,1635.6,1635.5,4.47174874]
[1693755306905,19.84770936,1635.6,1635.5,1.60458522]
[1693755311706,19.84770936,1635.6,1635.5,4.47174874]
[1693755313302,19.84770936,1635.6,1635.5,7.11358522]
[1693755313503,18.60689179,1635.6,1635.5,7.11358522]
[1693755314309,18.60689179,1635.6,1635.5,9.98074874]
[1693755314703,15.73972827,1635.6,1635.5,9.98074874]
[1693755315611,18.60689179,1635.6,1635.5,7.11358522]
[1693755317110,18.60689179,1635.6,1635.5,9.98074874]
[1693755317712,18.60689179,1635.6,1635.5,12.36984874]
[1693755317918,18.60689179,1635.6,1635.5,9.50268522]
[1693755318114,18.60689179,1635.6,1635.5,12.36984874]
[1693755318410,18.60689179,1635.6,1635.5,9.50268522]
[1693755321618,18.60689179,1635.6,1635.5,12.36984874]
[1693755321920,18.60689179,1635.6,1635.5,9.50268522]
[1693755322104,18.60689179,1635.6,1635.5,12.56025522]
[1693755324917,18.60689179,1635.6,1635.5,15.42741874]
[1693755325309,18.60689179,1635.6,1635.5,12.56025522]
[1693755327718,22.26633689,1635.6,1635.3,1.60422351]
[1693755327923,3.20247464,1635.4,1635.3,1.60422351]
[1693755328115,18.60656397,1635.4,1635.2,1.79292555]
[1693755328421,14.93949231,1635.3,1635.2,8.97192849]
[1693755328615,14.93949231,1635.3,1635.2,8.78322645]
[1693755329619,14.93949231,1635.3,1635.2,7.11322351]
[1693755330518,14.6336065,1635.3,1635.2,7.11322351]
[1693755330713,14.6336065,1635.3,1635.2,9.98038703]
[1693755331821,11.5756665,1635.3,1635.2,9.98038703]
[1693755332023,10.77414086,1635.3,1635.2,17.54364097]
[1693755333227,10.77414086,1635.3,1635.2,14.48551097]
[1693755333427,10.77414086,1635.3,1635.2,14.54671097]
[1693755334326,10.77414086,1635.3,1635.2,17.60484097]
[1693755334727,10.77414086,1635.3,1635.2,14.54671097]
[1693755337732,13.83208086,1635.3,1635.2,14.54671097]
[1693755338328,16.69924438,1635.3,1635.2,14.54671097]
[1693755340135,16.69924438,1635.3,1635.2,11.67956745]
[1693755340531,13.83208086,1635.3,1635.2,11.67956745]
[1693755340841,13.83208086,1635.3,1635.2,14.54673097]
[1693755342340,16.69924438,1635.3,1635.2,14.54673097]
[1693755342842,13.83208086,1635.3,1635.2,14.54673097]
[1693755343036,16.69924438,1635.3,1635.2,11.67956745]
[1693755343236,16.69924438,1635.3,1635.2,9.03769097]
[1693755343740,13.83208086,1635.3,1635.2,9.03769097]
[1693755343944,13.83197826,1635.3,1635.2,9.0364861]
[1693755344541,13.83197826,1635.3,1635.2,1.60315747]
[1693755344542,23.00825092,1635.3,1635.2,1.60315747]
[1693755345845,23.00825092,1635.3,1635.2,4.66130747]
[1693755346245,20.1410874,1635.3,1635.2,7.52847099]
[1693755346544,23.00825092,1635.3,1635.2,7.52847099]
[1693755346940,20.1410874,1635.3,1635.2,7.52847099]
[1693755347445,23.00825092,1635.3,1635.2,7.52847099]
[1693755347646,23.00825092,1635.3,1635.2,4.66130747]
[1693755347959,11.5741474,1635.3,1635.2,16.09562099]
[1693755348248,13.17416623,1635.3,1635.2,17.54234812]
[1693755348544,10.77383883,1635.3,1635.2,17.54234812]
[1693755351146,13.83177883,1635.3,1635.2,14.48419812]
[1693755351349,16.69894235,1635.3,1635.2,14.48419812]
[1693755351648,13.83177883,1635.3,1635.2,14.48419812]
[1693755352445,16.69894235,1635.3,1635.2,14.48419812]
[1693755352747,13.83177883,1635.3,1635.2,14.48419812]
[1693755352949,16.69894235,1635.3,1635.2,14.48419812]
[1693755353150,13.83177883,1635.3,1635.2,14.48419812]
[1693755354249,13.83177883,1635.3,1635.2,8.97519812]
[1693755354449,16.69894235,1635.3,1635.2,6.1080346]
[1693755354649,16.69894235,1635.3,1635.2,3.0498846]
[1693755355349,25.41737503,1635.3,1635.0,1.603235]
[1693755355550,7.10892691,1635.1,1635.0,3.05017822]
[1693755355748,7.10892691,1635.1,1634.9,7.28230853]
[1693755355749,22.20945043,1635.1,1634.9,7.28230853]
[1693755356048,14.68456,1635.0,1634.9,10.14947205]
[1693755356244,16.28411662,1635.0,1634.9,5.60289075]
[1693755356443,16.28411662,1635.0,1634.9,4.22360853]
[1693755357149,19.34263662,1635.0,1634.9,7.09077205]
[1693755357639,19.34263662,1635.0,1634.9,10.14948205]
[1693755360149,13.83363662,1635.0,1634.9,10.14948205]
[1693755360650,9.17556,1635.0,1634.9,20.15689574]
[1693755362445,4.65792662,1635.1,1635.0,0.0612]
[1693755362446,6.11688,1635.1,1635.0,0.0612]
[1693755362648,9.17536,1635.1,1635.0,14.48713637]
[1693755363347,9.17536,1635.1,1635.0,19.99613637]
[1693755367161,12.23384,1635.1,1635.0,10.82057637]
[1693755367349,16.70056014,1635.1,1635.0,9.44207268]
[1693755368255,16.70056014,1635.1,1635.0,1.6631362]
[1693755369461,16.70056014,1635.1,1635.0,3.04202479]
[1693755369663,16.70056014,1635.1,1635.0,7.58879972]
[1693755369866,16.70056014,1635.1,1635.0,8.96768831]
[1693755371559,16.70056014,1635.1,1635.0,6.10052479]
[1693755371766,16.70056014,1635.1,1635.0,9.09782479]
[1693755371958,13.64208014,1635.1,1635.0,9.09782479]
[1693755372159,13.64208014,1635.1,1635.0,11.96498831]
[1693755372665,13.64208014,1635.1,1635.0,15.02348831]
[1693755372867,10.77491662,1635.1,1635.0,15.02348831]
[1693755373167,13.64208014,1635.1,1635.0,11.96498831]
[1693755375070,13.64208014,1635.1,1635.0,9.09782479]
[1693755375278,13.64255092,1635.1,1635.0,9.09973081]
[1693755375469,13.64255092,1635.1,1635.0,6.04123081]
[1693755376374,13.64255092,1635.1,1635.0,9.09973081]
[1693755383381,19.15155092,1635.1,1635.0,9.09973081]
[1693755383582,19.15155092,1635.1,1635.0,11.96689433]
[1693755383786,19.15155092,1635.1,1635.0,9.09973081]
[1693755384185,19.15155092,1635.1,1635.0,11.96689433]
[1693755384382,19.15155092,1635.1,1635.0,9.09973081]
[1693755385081,16.2843874,1635.1,1635.0,11.96689433]
[1693755385985,19.15155092,1635.1,1635.0,9.09973081]
[1693755386886,21.55159202,1635.1,1635.0,9.09973081]
[1693755387087,19.95156462,1635.1,1635.0,9.09973081]
[1693755389484,19.95199567,1635.1,1635.0,9.100906]
[1693755389878,25.44077744,1635.1,1634.9,4.00933735]
[1693755390080,9.50982112,1635.0,1634.9,5.38966188]
[1693755390282,21.7736664,1635.0,1634.9,1.60373494]
[1693755390479,28.08280326,1635.0,1634.8,1.60373494]
[1693755390680,13.20696678,1634.9,1634.7,1.60373494]
[1693755390879,20.14451985,1634.8,1634.7,2.92311735]
[1693755391483,21.74409024,1634.8,1634.7,1.60373494]
[1693755392275,21.74409024,1634.8,1634.7,4.66279494]
[1693755392474,19.34409039,1634.8,1634.7,4.66279494]
[1693755393587,19.34409039,1634.8,1634.7,7.72185494]
[1693755395289,19.34409039,1634.8,1634.7,6.11812]
[1693755395586,19.34409039,1634.8,1634.7,7.72185494]
[1693755395790,19.34409039,1634.8,1634.6,12.62541735]
[1693755395979,19.15204392,1634.7,1634.6,7.16065494]
[1693755396184,22.21111392,1634.7,1634.6,4.10153494]
[1693755397387,22.21111392,1634.7,1634.6,2.4978]
[1693755397686,22.21111392,1634.7,1634.6,4.10153494]
[1693755398291,20.61244352,1634.7,1634.6,2.4978]
[1693755398989,22.21111392,1634.7,1634.6,2.4978]
[1693755399189,22.21111392,1634.7,1634.5,12.60490735]
[1693755399391,5.509,1634.6,1634.5,10.19933494]
[1693755399693,17.746,1634.6,1634.5,10.19933494]
[1693755402186,17.746,1634.6,1634.5,4.08063494]
[1693755402392,17.746,1634.6,1634.5,2.4769]
[1693755402792,5.509,1634.6,1634.5,2.4769]
[1693755410598,5.99591435,1634.6,1634.5,2.4769]
[1693755412198,5.99591435,1634.6,1634.5,5.34406352]
[1693755412396,5.99591435,1634.6,1634.5,2.4769]
[1693755414500,7.59458475,1634.6,1634.4,2.4597]
[1693755414803,5.509,1634.5,1634.2,4.08803494]
[1693755415004,8.37616352,1634.4,1634.2,6.65393494]
[1693755415205,5.509,1634.4,1634.2,6.65393494]
[1693755415503,2.86716352,1634.3,1634.2,6.65393494]
[1693755415804,2.86716352,1634.3,1634.2,9.52109846]
[1693755416103,5.509,1634.4,1634.2,9.52109846]
[1693755416306,8.37616352,1634.4,1634.2,9.52109846]
[1693755416502,5.509,1634.4,1634.3,2.33113648]
[1693755416805,5.509,1634.5,1634.4,0.0612]
[1693755417004,5.509,1634.5,1634.4,2.92836352]
[1693755417301,5.509,1634.5,1634.4,5.41446352]
[1693755420511,8.37616352,1634.5,1634.4,5.41446352]
[1693755420712,5.509,1634.5,1634.4,2.4861]
[1693755421416,8.37616352,1634.5,1634.4,2.4861]
[1693755422818,8.37616352,1634.5,1634.4,2.5473]
[1693755423613,8.37616352,1634.5,1634.4,2.4861]
[1693755423919,8.37616352,1634.5,1634.4,2.5473]
[1693755427121,8.37616352,1634.5,1634.4,2.4861]
[1693755429227,9.97483392,1634.5,1634.4,2.4861]
[1693755429420,9.97483392,1634.5,1634.2,9.59703494]
[1693755429619,9.97483392,1634.5,1634.2,11.97683494]
[1693755430220,10.45350658,1634.5,1634.2,11.97683494]
[1693755430422,10.45350658,1634.5,1634.2,14.38243735]
[1693755431427,10.45350658,1634.5,1634.3,4.47089846]
[1693755431727,10.45350658,1634.5,1634.3,1.60373494]
[1693755431924,5.509,1634.4,1634.3,1.60373494]
[1693755432224,5.509,1634.4,1634.2,8.87343735]
[1693755432417,5.509,1634.4,1634.3,4.46956845]
[1693755432815,5.509,1634.4,1634.3,1.60240493]
[1693755433125,17.74749,1634.4,1634.3,4.66209493]
[1693755433426,20.61465352,1634.4,1634.3,4.66209493]
[1693755433828,20.61465352,1634.4,1634.3,7.72180493]
[1693755434627,22.21332392,1634.4,1634.3,7.72180493]
[1693755435524,22.21332392,1634.4,1634.3,9.0409048]
[1693755436829,22.21332392,1634.4,1634.3,11.44650721]
[1693755437330,22.21332392,1634.4,1634.3,9.0409048]
[1693755438130,22.21332392,1634.4,1634.3,5.9811948]
[1693755439227,22.21332392,1634.4,1634.3,2.9215048]
[1693755439431,24.12141396,1634.4,1634.2,1.60240493]
[1693755439729,19.34642141,1634.3,1634.2,4.66237493]
[1693755439929,19.34642141,1634.3,1634.2,11.61963229]
[1693755440125,16.28661141,1634.3,1634.2,11.61963229]
[1693755440328,16.28661141,1634.3,1634.2,18.34999329]
[1693755440533,13.22680141,1634.3,1634.2,19.95416212]
[1693755441127,7.71780141,1634.3,1634.2,25.46316212]
[1693755441429,10.77762141,1634.3,1634.2,25.46316212]
[1693755442335,10.77762141,1634.3,1634.2,25.4630819]
[1693755442537,10.77762141,1634.3,1634.2,23.85899329]
[1693755444236,10.77762141,1634.3,1634.2,20.79899329]
[1693755444432,13.64478493,1634.3,1634.2,20.79899329]
[1693755446535,10.77762141,1634.3,1634.2,20.79899329]
[1693755446738,13.64478493,1634.3,1634.2,20.79899329]
[1693755447736,13.64478493,1634.3,1634.2,17.93182977]
[1693755448435,13.64478493,1634.3,1634.2,20.79899329]
[1693755448837,16.70460493,1634.3,1634.2,20.79899329]
[1693755449338,13.83744141,1634.3,1634.2,20.79899329]
[1693755449533,15.10642352,1634.3,1634.2,20.79899329]
[1693755449837,16.70460493,1634.3,1634.2,20.79899329]
[1693755450026,16.70460493,1634.3,1634.2,17.93182977]
[1693755450232,15.10642352,1634.3,1634.2,17.93182977]
[1693755450532,13.83744141,1634.3,1634.2,17.73899329]
[1693755450733,16.70460493,1634.3,1634.2,17.73899329]
[1693755450934,22.21360493,1634.3,1634.2,6.30285977]
[1693755451136,24.61087705,1634.3,1634.2,5.50147478]
[1693755451438,22.21360493,1634.3,1634.2,5.50147478]
[1693755452032,24.61087705,1634.3,1634.2,4.18191742]
[1693755452233,24.61087705,1634.3,1634.2,5.50149362]
[1693755452442,24.61087705,1634.3,1634.2,4.18191742]
[1693755453441,23.01269564,1634.3,1634.2,4.18191742]
[1693755453739,24.61114237,1634.3,1634.2,7.24190742]
[1693755454441,24.61114237,1634.3,1634.2,4.18191742]
[1693755456335,24.61114237,1634.3,1634.2,7.24190742]
[1693755457444,24.61114237,1634.3,1634.2,8.561501]
[1693755458241,24.61114237,1634.3,1634.2,11.42866452]
[1693755458433,24.61114237,1634.3,1634.2,8.561501]
[1693755460041,23.01269564,1634.3,1634.2,8.56167091]
[1693755460737,19.34720177,1634.3,1634.2,16.89442684]
[1693755460935,18.68465389,1634.3,1634.2,16.89442684]
[1693755461136,16.28738177,1634.3,1634.2,16.89442684]
[1693755461342,16.28738177,1634.3,1634.2,15.29020942]
[1693755462939,19.15454529,1634.3,1634.2,15.29020942]
[1693755463333,16.28738177,1634.3,1634.2,18.35019942]
[1693755464544,16.28738177,1634.3,1634.2,15.29020942]
[1693755465238,16.28738177,1634.3,1634.2,18.35019942]
[1693755465640,16.28738177,1634.3,1634.2,15.29020942]
[1693755469847,18.68465389,1634.3,1634.2,15.29020942]
[1693755470648,21.55181741,1634.3,1634.2,15.29020942]
[1693755471747,18.68465389,1634.3,1634.2,15.29020942]
[1693755472142,21.55181741,1634.3,1634.2,15.29020942]
[1693755472543,18.68465389,1634.3,1634.2,15.29020942]
[1693755473053,21.55181741,1634.3,1634.2,15.29020942]
[1693755473548,17.08571212,1634.3,1634.2,15.29020942]
[1693755474047,19.95287564,1634.3,1634.2,15.29020942]
[1693755474750,17.08571212,1634.3,1634.2,15.29020942]
[1693755475649,19.95287564,1634.3,1634.2,15.29020942]
[1693755476352,17.08571212,1634.3,1634.2,15.29020942]
[1693755477353,17.08571212,1634.3,1634.2,12.88460701]
[1693755477650,19.95287564,1634.3,1634.2,12.88460701]
[1693755478052,19.95287564,1634.3,1634.2,15.29310022]
[1693755478442,19.95287564,1634.3,1634.2,12.88460701]
[1693755479162,20.43091235,1634.3,1634.2,15.2931805]
[1693755479455,20.43091235,1634.3,1634.2,12.88460701]
[1693755479643,19.16438072,1634.3,1634.2,16.09207689]
[1693755480656,19.16444799,1634.3,1634.2,16.09207689]
[1693755481253,17.56374883,1634.3,1634.2,16.09207689]
[1693755481754,19.16450762,1634.3,1634.2,16.09207689]
[1693755481952,17.56374883,1634.3,1634.2,16.09207689]
[1693755482145,19.16452056,1634.3,1634.2,16.09207689]
[1693755482345,17.56374883,1634.3,1634.2,16.09207689]
[1693755483352,12.05474883,1634.3,1634.2,16.09207689]
[1693755487958,14.92191235,1634.3,1634.2,16.09207689]
[1693755490561,12.05474883,1634.3,1634.2,16.09207689]
[1693755491060,14.92191235,1634.3,1634.2,16.09207689]
[1693755491259,14.92191235,1634.3,1634.2,13.22491337]
[1693755491860,14.92191235,1634.3,1634.2,16.09207689]
[1693755492364,14.92191235,1634.3,1634.2,13.22491337]
[1693755493362,20.43091235,1634.3,1634.2,13.22491337]
[1693755493961,20.43091235,1634.3,1634.2,16.09207689]
[1693755494665,20.43091235,1634.3,1634.2,13.22491337]
[1693755495059,20.43091235,1634.3,1634.2,16.09207689]
[1693755495661,20.43091235,1634.3,1634.2,13.22491337]
[1693755496163,17.56374883,1634.3,1634.2,16.09207689]
[1693755496767,20.43091235,1634.3,1634.2,13.22491337]
[1693755498061,17.56374883,1634.3,1634.2,19.15206689]
[1693755498260,12.05474883,1634.3,1634.2,24.66106689]
[1693755499156,14.92191235,1634.3,1634.2,21.60107689]
[1693755499356,12.05474883,1634.3,1634.2,21.60107689]
[1693755501667,23.79685249,1634.3,1634.2,7.10493337]
[1693755501971,22.84155038,1634.3,1634.2,7.10493337]
[1693755502171,25.24349193,1634.3,1634.2,7.10493337]
[1693755502474,25.24353244,1634.3,1634.2,7.10493337]
[1693755502861,22.84155038,1634.3,1634.2,10.16492337]
[1693755503664,25.2435736,1634.3,1634.2,4.52723337]
[1693755503868,25.2435736,1634.3,1634.1,3.52213125]
[1693755503869,30.16938466,1634.3,1634.1,3.52213125]
[1693755504165,30.16938466,1634.3,1634.1,5.53114025]
[1693755504166,10.45945483,1634.2,1634.1,5.53114025]
[1693755504372,19.63942483,1634.2,1634.1,5.53114025]
[1693755504977,19.63942483,1634.2,1634.1,8.39830377]
[1693755505169,19.63942483,1634.2,1634.1,11.45847377]
[1693755505868,19.63942483,1634.2,1634.1,8.59131025]
[1693755507373,18.83724851,1634.2,1634.1,11.45847377]
[1693755508367,17.3952785,1634.2,1634.1,11.45847377]
[1693755509067,17.3952785,1634.2,1634.1,8.59131025]
[1693755509768,17.3952785,1634.2,1634.1,11.45847377]
[1693755511268,17.08914836,1634.2,1634.1,11.45847377]
[1693755511570,17.08914836,1634.2,1634.1,8.59131025]
[1693755512070,17.08914836,1634.2,1634.1,11.45847377]
[1693755512674,17.08914836,1634.2,1634.1,8.59131025]
[1693755513175,20.14913836,1634.2,1634.1,2.47097025]
[1693755513379,20.14913836,1634.2,1634.1,0.0612]
[1693755515077,20.14913836,1634.2,1634.1,3.1214]
[1693755515275,21.07185635,1634.2,1634.1,9.04876352]
[1693755515781,21.07185635,1634.2,1634.0,7.73989673]
[1693755515977,6.8667683,1634.1,1634.0,5.46996025]
[1693755516277,19.1074883,1634.1,1634.0,8.53035025]
[1693755517090,16.0473083,1634.1,1634.0,8.53035025]
[1693755517410,10.77996642,1634.1,1634.0,14.45790377]
[1693755517603,1.59942642,1634.1,1634.0,17.51829377]
[1693755517776,1.59942642,1634.1,1634.0,18.00384586]
[1693755517777,7.71978642,1634.1,1634.0,18.00384586]
[1693755519077,7.71978642,1634.1,1634.0,14.94345586]
[1693755520576,13.64715994,1634.1,1634.0,14.94345586]
[1693755521381,10.77999642,1634.1,1634.0,14.94345586]
[1693755522685,10.77999642,1634.1,1634.0,14.94047361]
[1693755522686,10.77954828,1634.1,1634.0,14.94047361]
[1693755523883,10.77954828,1634.1,1634.0,16.15833692]
[1693755525082,13.6467118,1634.1,1634.0,16.15833692]